bitfinex-derivatives/quotes_BTCF0:USTF0_20210102
["timestamp","ask_amount","ask_price","bid_price","bid_amount"]
[1609599428143,0.00039086,31283.0,31270.0,3.9861]
[1609599428144,0.00039086,31283.0,31279.0,1.0]
[1609599428545,0.00039086,31283.0,31282.0,0.00035789]
[1609599428745,0.00039086,31283.0,31280.0,0.00035789]
[1609599429147,0.00039086,31283.0,31282.0,0.00035792]
[1609599429348,0.1603,31284.0,31281.0,0.00035792]
[1609599429548,0.1603,31284.0,31279.0,1.0]
[1609599429549,0.18043158,31282.0,31279.0,1.0]
[1609599429748,0.18043158,31282.0,31280.0,0.00035793]
[1609599430150,0.0003909,31281.0,31280.0,0.00035793]
[1609599430950,0.0003909,31281.0,31276.0,0.00035793]
[1609599431551,0.18043158,31277.0,31276.0,0.00035793]
[1609599431952,0.18082248,31277.0,31276.0,0.00035793]
[1609599434255,0.18043158,31277.0,31276.0,0.00035793]
[1609599434456,0.18082246,31277.0,31276.0,0.00035793]
[1609599434656,0.18082246,31277.0,31276.0,0.00035791]
[1609599435860,0.17887321,31277.0,31276.0,0.00035791]
[1609599437058,0.17848233,31277.0,31276.0,0.00035791]
[1609599438060,0.17848233,31277.0,31276.0,1.00035791]
[1609599439760,0.1603,31284.0,31276.0,1.00035791]
[1609599439960,0.00407251,31290.0,31276.0,1.00035791]
[1609599440160,0.00407251,31290.0,31275.0,0.18043158]
[1609599440161,0.00039086,31283.0,31277.0,0.00035789]
[1609599440561,0.00039088,31289.0,31277.0,0.00035789]
[1609599440762,0.00039088,31282.0,31276.0,0.00035791]
[1609599440962,0.14738,31284.0,31278.0,0.00035791]
[1609599441263,0.14738,31284.0,31276.0,0.00035791]
[1609599441264,0.00039088,31283.0,31276.0,0.00035791]
[1609599441463,0.00039088,31283.0,31279.0,0.00035791]
[1609599441664,0.00039088,31283.0,31282.0,0.18043158]
[1609599442064,0.00039088,31283.0,31282.0,0.18078949]
[1609599443869,0.14738,31284.0,31282.0,0.18078949]
[1609599444471,0.14738,31284.0,31283.0,0.00035791]
[1609599444971,0.14777087,31284.0,31283.0,0.00035791]
[1609599458290,0.14582174,31284.0,31283.0,0.00035791]
[1609599459892,0.14582174,31284.0,31283.0,4.77705791]
[1609599460093,0.14582174,31284.0,31283.0,5.77705791]
[1609599460693,0.14543087,31284.0,31283.0,5.77705791]
[1609599460893,0.00406882,31296.0,31283.0,5.77705791]
[1609599461494,0.00039073,31295.0,31284.0,0.03943099]
[1609599461693,0.14772073,31295.0,31294.0,0.18043158]
[1609599461893,0.14733,31295.0,31294.0,0.18043158]
[1609599462295,0.14772073,31295.0,31294.0,0.91848936]
[1609599462993,0.14733,31295.0,31294.0,0.91848936]
[1609599464998,0.24333,31295.0,31294.0,0.91848936]
[1609599465198,0.14733,31295.0,31294.0,0.91848936]
[1609599466098,0.14733,31295.0,31294.0,0.18078936]
[1609599466299,0.24303,31295.0,31294.0,0.18078936]
[1609599466499,0.14733,31295.0,31294.0,0.18078936]
[1609599466700,0.2717,31308.0,31294.0,0.18078936]
[1609599467299,0.00039069,31307.0,31294.0,0.18043158]
[1609599467500,0.12470069,31307.0,31294.0,0.18043158]
[1609599467700,0.00039065,31306.0,31301.0,0.18043158]
[1609599467900,0.00039065,31306.0,31288.0,3.7445]
[1609599468100,0.00039065,31306.0,31294.0,1.0]
[1609599468302,0.0968,31305.0,31294.0,1.0]
[1609599468903,0.00039065,31304.0,31295.0,0.00036178]
[1609599469304,0.12431,31307.0,31295.0,0.00036178]
[1609599469704,0.18043158,31304.0,31303.0,0.18043158]
[1609599470506,0.27543158,31304.0,31303.0,0.18043158]
[1609599471107,0.18043158,31304.0,31303.0,0.18043158]
[1609599472210,0.27713158,31304.0,31303.0,0.18043158]
[1609599473011,0.0967,31304.0,31303.0,0.18043158]
[1609599474312,0.12431,31307.0,31303.0,0.18043158]
[1609599474513,0.45213158,31308.0,31303.0,0.18043158]
[1609599475217,0.0953,31307.0,31303.0,0.18043158]
[1609599475415,0.45213158,31308.0,31303.0,0.18043158]
[1609599475616,0.45213158,31308.0,31307.0,0.18043158]
[1609599476417,0.45213158,31308.0,31297.0,1.0]
[1609599476617,0.62416158,31308.0,31297.0,1.0]
[1609599476818,0.62416158,31308.0,31297.0,1.6367]
[1609599477019,0.44373,31308.0,31297.0,1.0]
[1609599477217,0.17203,31308.0,31298.0,3.7819]
[1609599477617,0.17203,31308.0,31307.0,0.18043158]
[1609599478719,0.17203,31308.0,31294.0,1.0]
[1609599478919,5.25043,31308.0,31294.0,1.0]
[1609599479219,1.0,31307.0,31294.0,1.0]
[1609599479620,0.18043158,31295.0,31294.0,1.0]
[1609599480222,0.18043158,31295.0,31292.0,0.18043158]
[1609599481123,0.17848333,31295.0,31292.0,0.18043158]
[1609599483825,0.17848333,31295.0,31293.0,0.00036174]
[1609599485824,0.0958,31294.0,31293.0,0.00036174]
[1609599487825,0.17848333,31295.0,31293.0,0.00036174]
[1609599488026,0.16553,31301.0,31293.0,0.00036174]
[1609599488426,1.0,31304.0,31293.0,0.00036174]
[1609599488626,0.00039058,31300.0,31293.0,0.00036174]
[1609599488826,0.00039058,31303.0,31293.0,0.00036174]
[1609599489128,1.0,31304.0,31293.0,0.00036174]
[1609599489328,0.00039058,31302.0,31293.0,0.00036174]
[1609599489728,0.18043158,31302.0,31301.0,0.18043158]
[1609599489929,0.18043158,31302.0,31293.0,0.00036174]
[1609599490430,0.00039058,31301.0,31292.0,0.00036171]
[1609599490831,0.00039058,31301.0,31294.0,0.00036171]
[1609599491231,0.00039058,31301.0,31292.0,0.00036171]
[1609599491731,0.00039058,31301.0,31300.0,0.18043158]
[1609599492031,0.00039058,31301.0,31300.0,0.18079329]
[1609599492232,0.09529058,31301.0,31300.0,0.18079329]
[1609599492831,0.0949,31301.0,31300.0,0.18079329]
[1609599493030,0.09295228,31301.0,31300.0,0.18079329]
[1609599495131,0.18043158,31302.0,31300.0,0.18079329]
[1609599495534,0.18043158,31302.0,31301.0,0.00036164]
[1609599496136,0.27563158,31302.0,31301.0,0.00036164]
[1609599496934,0.18043158,31302.0,31301.0,0.00036164]
[1609599497933,0.27633158,31302.0,31301.0,0.00036164]
[1609599499138,0.18043158,31302.0,31301.0,0.00036164]
[1609599500141,0.27513158,31302.0,31301.0,0.00036164]
[1609599500538,0.18043158,31302.0,31301.0,0.00036164]
[1609599501544,0.27733158,31302.0,31301.0,0.00036164]
[1609599502545,0.18043158,31302.0,31301.0,0.00036164]
[1609599503646,0.27733158,31302.0,31301.0,0.00036164]
[1609599503859,0.18043158,31302.0,31301.0,0.00036164]
[1609599504256,2.83983158,31302.0,31298.0,0.00036168]
[1609599504549,2.83983158,31302.0,31295.0,0.00036172]
[1609599504749,1.83983158,31302.0,31299.0,0.00036172]
[1609599505148,0.00039061,31301.0,31296.0,0.00036175]
[1609599505349,0.00039061,31301.0,31290.0,0.00036175]
[1609599505549,0.00039061,31301.0,31297.0,0.00036175]
[1609599505850,0.18043158,31298.0,31293.0,0.18043158]
[1609599506152,0.18043158,31298.0,31294.0,0.00036173]
[1609599510553,1.0,31299.0,31294.0,0.00036173]
[1609599511253,1.0,31299.0,31294.0,0.03941406]
[1609599511856,1.0,31299.0,31298.0,0.18043158]
[1609599512254,1.0,31299.0,31298.0,0.18079319]
[1609599512454,0.46123158,31306.0,31298.0,0.18079319]
[1609599512856,0.45928424,31306.0,31299.0,0.00036161]
[1609599515959,0.45928424,31306.0,31305.0,0.18043158]
[1609599516359,0.45928424,31306.0,31305.0,0.18079319]
[1609599518062,0.27885266,31306.0,31305.0,0.18079319]
[1609599518261,0.27885266,31306.0,31305.0,0.21079319]
[1609599519363,0.17203,31308.0,31305.0,0.21079319]
[1609599519561,0.01392397,31321.0,31305.0,0.21079319]
[1609599519762,0.01392397,31321.0,31306.0,0.00036161]
[1609599519962,0.01392397,31321.0,31312.0,0.18043158]
[1609599520166,1.0,31317.0,31306.0,0.00036161]
[1609599520361,0.28379046,31313.0,31312.0,0.00036161]
[1609599520762,0.28379046,31313.0,31306.0,0.00036161]
[1609599520963,0.28379046,31313.0,31312.0,0.00036159]
[1609599521265,0.2834,31313.0,31307.0,0.00036159]
[1609599521665,0.43062044,31313.0,31312.0,0.00036159]
[1609599521866,0.61066158,31313.0,31312.0,0.18043158]
[1609599522066,0.61066158,31313.0,31312.0,0.18079317]
[1609599523169,0.60871449,31313.0,31312.0,0.18079317]
[1609599524773,0.60910494,31313.0,31312.0,0.18079317]
[1609599525273,0.60871449,31313.0,31312.0,0.18079317]
[1609599526075,0.60910492,31313.0,31312.0,0.18079317]
[1609599527076,0.60871449,31313.0,31312.0,0.18079317]
[1609599527777,0.60910494,31313.0,31312.0,0.18079317]
[1609599528179,1.60910494,31313.0,31312.0,0.18079317]
[1609599528979,1.60910494,31313.0,31312.0,0.00036159]
[1609599529180,3.36230494,31313.0,31312.0,0.00036159]
[1609599529379,3.36230494,31313.0,31306.0,0.00036222]
[1609599529579,3.36230494,31313.0,31305.0,0.03]
[1609599529580,3.36230494,31313.0,31312.0,0.00036222]
[1609599529780,3.34230496,31313.0,31307.0,0.00036222]
[1609599529979,3.16187338,31313.0,31308.0,0.18043158]
[1609599530379,1.40867338,31313.0,31309.0,0.00036227]
[1609599530781,1.38867338,31313.0,31309.0,0.00036227]
[1609599531882,0.18043158,31310.0,31309.0,0.00036227]
[1609599532683,0.16043158,31310.0,31309.0,0.00036227]
[1609599536389,0.15848453,31310.0,31309.0,0.00036227]
[1609599538792,0.15887498,31310.0,31309.0,0.00036227]
[1609599539393,0.15848453,31310.0,31309.0,0.00036227]
[1609599544102,1.15848453,31310.0,31309.0,0.00036227]
[1609599545403,1.15887498,31310.0,31309.0,0.00036227]
[1609599545903,1.15848453,31310.0,31309.0,0.00036227]
[1609599547306,2.15887498,31310.0,31309.0,0.00036227]
[1609599547703,5.78057498,31310.0,31309.0,0.00036227]
[1609599547904,5.78057498,31310.0,31306.0,0.0003623]
[1609599548104,5.78018453,31310.0,31306.0,0.0003623]
[1609599548305,5.77157504,31310.0,31306.0,0.0003623]
[1609599548708,5.76962744,31310.0,31306.0,0.0003623]
[1609599549712,2.14792744,31310.0,31306.0,0.0003623]
[1609599550109,1.0,31307.0,31306.0,0.0003623]
[1609599550309,2.0,31307.0,31306.0,0.0003623]
[1609599550713,2.00039054,31307.0,31306.0,0.0003623]
[1609599550912,6.71389054,31307.0,31306.0,0.0003623]
[1609599551213,5.71389054,31307.0,31306.0,0.0003623]
[1609599551412,6.71389054,31307.0,31306.0,0.0003623]
[1609599553111,6.71389054,31307.0,31294.0,0.00036236]
[1609599553411,0.00039054,31306.0,31294.0,0.00036236]
[1609599553911,0.13746054,31306.0,31294.0,0.00036236]
[1609599554111,1.0,31305.0,31294.0,0.00036236]
[1609599554313,1.0,31305.0,31296.0,0.18043158]
[1609599554513,0.00039054,31304.0,31296.0,0.18043158]
[1609599554713,0.00039054,31304.0,31297.0,0.00036236]
[1609599556314,0.18043158,31298.0,31297.0,0.00036236]
[1609599560117,0.13707,31306.0,31297.0,0.00036236]
[1609599560319,1.0,31311.0,31305.0,0.18043158]
[1609599560517,0.2908,31312.0,31305.0,0.18043158]
[1609599560917,0.2908,31312.0,31306.0,0.00036227]
[1609599562319,0.18043158,31307.0,31306.0,0.00036227]
[1609599563924,0.18043158,31307.0,31299.0,0.00036227]
[1609599564323,1.0,31311.0,31306.0,0.00036229]
[1609599564525,1.0,31311.0,31304.0,0.18043158]
[1609599564724,1.0,31311.0,31307.0,0.00036229]
[1609599565023,1.0,31311.0,31305.0,0.00036229]
[1609599565323,1.0,31311.0,31308.0,0.00036229]
[1609599565523,1.0,31311.0,31305.0,0.00036229]
[1609599565824,1.0,31311.0,31309.0,0.00036229]
[1609599566125,1.0,31307.0,31305.0,0.00036229]
[1609599566325,0.18043158,31306.0,31304.0,0.18043158]
[1609599566726,0.29233158,31306.0,31305.0,0.00036229]
[1609599570132,1.29233158,31306.0,31305.0,0.00036229]
[1609599570330,1.29233158,31306.0,31300.0,0.18043158]
[1609599570632,1.29233158,31306.0,31300.0,0.17079385]
[1609599571331,1.29233158,31306.0,31301.0,0.00036223]
[1609599572335,0.18043158,31302.0,31301.0,0.00036223]
[1609599572533,0.02963777,31301.0,31300.0,0.17079385]
[1609599572733,5.03133777,31301.0,31298.0,1.84773268]
[1609599572934,1.0,31300.0,31298.0,1.84773268]
[1609599573234,1.0,31300.0,31299.0,0.00036225]
[1609599574037,6.02939014,31301.0,31299.0,1.84846529]
[1609599574237,1.0,31300.0,31299.0,1.84846529]
[1609599574639,2.0,31300.0,31299.0,0.00036225]
[1609599575139,2.0,31300.0,31297.0,0.00036225]
[1609599575338,2.0,31300.0,31299.0,0.00036225]
[1609599575737,2.0,31300.0,31298.0,0.00036225]
[1609599575937,1.0,31300.0,31297.0,0.00036225]
[1609599576138,5.02939014,31301.0,31299.0,0.00036225]
[1609599576337,5.02939014,31301.0,31296.0,0.17079383]
[1609599576637,5.02939014,31301.0,31297.0,0.00036221]
[1609599577939,5.02939014,31301.0,31296.0,0.17079383]
[1609599578140,5.02939014,31301.0,31296.0,0.16115604]
[1609599578339,0.18043158,31297.0,31296.0,0.16115604]
[1609599578941,0.18043158,31297.0,31296.0,0.16151822]
[1609599579844,0.18043158,31297.0,31296.0,0.00036218]
[1609599583649,0.18043158,31297.0,31296.0,0.00036219]
[1609599586355,1.18043158,31297.0,31296.0,0.00036219]
[1609599586553,1.77373158,31297.0,31296.0,0.00036219]
[1609599586954,1.77178392,31297.0,31296.0,0.00036219]
[1609599587354,1.77178392,31297.0,31294.0,0.06322838]
[1609599587554,1.34645451,31297.0,31294.0,0.06322838]
[1609599587754,0.00039064,31296.0,31295.0,0.00036301]
[1609599587956,4.95509064,31296.0,31295.0,0.00036301]
[1609599588155,5.95509064,31296.0,31295.0,0.00036301]
[1609599588555,1.00039064,31296.0,31284.0,2.06015928]
[1609599588756,1.00039064,31296.0,31284.0,5.75775928]
[1609599588956,0.00039076,31295.0,31285.0,0.00036309]
[1609599590157,1.0,31290.0,31285.0,0.00036309]
[1609599590357,0.18043158,31286.0,31285.0,0.00036309]
[1609599590758,0.18043158,31286.0,31275.0,0.18079462]
[1609599590959,0.18043158,31286.0,31285.0,0.00036304]
[1609599591261,0.18043158,31286.0,31276.0,0.00036302]
[1609599592363,0.15169,31290.0,31283.0,0.18043158]
[1609599592862,0.15169,31290.0,31284.0,0.00036302]
[1609599594466,0.18043158,31285.0,31280.0,0.18043158]
[1609599594968,0.18043158,31285.0,31281.0,0.00036302]
[1609599597372,0.18043158,31285.0,31275.0,0.00036305]
[1609599597774,0.18043158,31285.0,31282.0,0.00036305]
[1609599597975,0.18043158,31285.0,31274.0,4.849]
[1609599598376,1.0,31286.0,31277.0,0.18043158]
[1609599598576,1.0,31286.0,31275.0,0.00036304]
[1609599598976,0.99805146,31286.0,31272.0,0.00036306]
[1609599599176,0.99805146,31289.0,31276.0,0.00036306]
[1609599599377,0.99805146,31285.0,31276.0,0.00036306]
[1609599599579,0.99805146,31285.0,31273.0,0.00036306]
[1609599599778,0.99805146,31285.0,31274.0,0.00036306]
[1609599599978,0.99805146,31285.0,31271.0,0.00036306]
[1609599600380,0.99805146,31287.0,31275.0,0.00036306]
[1609599600579,0.99805146,31287.0,31273.0,0.18043158]
[1609599600779,0.99805146,31287.0,31271.0,0.00036306]
[1609599600780,0.99805146,31287.0,31276.0,0.00036306]
[1609599601079,0.99805146,31287.0,31274.0,0.00036306]
[1609599601280,0.99805146,31287.0,31277.0,0.00036306]
[1609599601580,0.99805146,31287.0,31275.0,0.00036309]
[1609599601883,0.99805146,31287.0,31278.0,0.00036311]
[1609599602082,0.99805146,31287.0,31276.0,0.00036311]
[1609599602280,1.0,31278.0,31276.0,0.00036311]
[1609599602480,1.0,31278.0,31268.0,1.87374738]
[1609599602481,0.18043158,31277.0,31270.0,0.18043158]
[1609599602880,0.18043158,31277.0,31271.0,0.0003631]
[1609599603885,0.18043158,31277.0,31271.0,4.8417631]
[1609599604382,0.18043158,31277.0,31272.0,0.00036305]
[1609599604585,1.0,31278.0,31274.0,0.18043158]
[1609599604983,1.0,31278.0,31275.0,0.00036305]
[1609599605990,1.0,31278.0,31272.0,0.00036307]
[1609599606383,1.0,31278.0,31268.0,0.00036307]
[1609599606586,0.18043158,31273.0,31268.0,0.00036307]
[1609599606782,0.18043158,31273.0,31267.0,1.8753364]
[1609599606984,0.18043158,31273.0,31271.0,0.00036308]
[1609599607185,0.18043158,31273.0,31268.0,0.00036308]
[1609599607584,0.18043158,31273.0,31272.0,0.00036308]
[1609599607785,0.18043158,31273.0,31269.0,0.0003631]
[1609599607985,0.18043158,31273.0,31272.0,0.00036322]
[1609599608384,0.18043158,31273.0,31268.0,0.00036322]
[1609599608590,1.0,31274.0,31265.0,1.98099927]
[1609599608591,1.0,31274.0,31272.0,0.00036322]
[1609599608787,1.0,31274.0,31270.0,0.18043158]
[1609599609086,1.0,31274.0,31273.0,0.00036322]
[1609599609285,1.0,31274.0,31271.0,0.00036322]
[1609599609589,1.0,31274.0,31273.0,0.00036322]
[1609599609989,2.0,31274.0,31271.0,0.00036322]
[1609599610193,2.0,31274.0,31273.0,0.00036322]
[1609599610389,2.0,31274.0,31272.0,0.00036325]
[1609599610596,0.18043158,31273.0,31272.0,0.00036325]
[1609599610787,1.18043158,31273.0,31271.0,0.00036327]
[1609599610987,1.18043158,31273.0,31272.0,0.00036327]
[1609599611487,1.18043158,31273.0,31266.0,0.00036327]
[1609599611687,1.18043158,31273.0,31272.0,0.00036329]
[1609599612088,1.18043158,31273.0,31266.0,0.00036329]
[1609599612290,1.18043158,31273.0,31272.0,0.00036331]
[1609599612488,1.18043158,31273.0,31267.0,0.00036331]
[1609599612690,1.17848234,31273.0,31267.0,0.00036331]
[1609599612888,1.17848234,31273.0,31266.0,0.00036331]
[1609599613088,1.17848234,31273.0,31268.0,0.00036333]
[1609599613289,1.17848234,31273.0,31267.0,0.00036333]
[1609599613589,1.17848234,31273.0,31269.0,0.00036333]
[1609599613987,1.17848234,31273.0,31266.0,0.00036333]
[1609599614288,1.17848234,31273.0,31270.0,0.00036333]
[1609599614488,1.17848234,31273.0,31267.0,0.00036335]
[1609599614688,1.17848234,31273.0,31271.0,0.00036335]
[1609599614889,1.17848234,31273.0,31268.0,0.00036333]
[1609599615188,1.17848234,31273.0,31272.0,0.00036333]
[1609599615388,1.17848234,31273.0,31269.0,0.00036333]
[1609599615589,0.17848234,31273.0,31269.0,0.00036333]
[1609599615789,0.17848234,31273.0,31272.0,0.00036333]
[1609599615991,0.17848234,31273.0,31270.0,0.00036329]
[1609599616190,1.17848234,31273.0,31272.0,0.00036329]
[1609599616491,1.17848234,31273.0,31267.0,0.18043158]
[1609599616791,1.17848234,31273.0,31272.0,0.00036326]
[1609599616991,1.17848234,31273.0,31268.0,0.00036326]
[1609599617393,0.17848234,31273.0,31272.0,0.00036326]
[1609599617593,0.17848234,31273.0,31269.0,0.00036326]
[1609599617795,0.1289,31276.0,31272.0,4.5142]
[1609599618195,0.10875,31283.0,31272.0,5.51456323]
[1609599618397,0.10875,31283.0,31273.0,0.0003632]
[1609599618597,0.18043158,31284.0,31282.0,0.18043158]
[1609599618998,0.18043158,31284.0,31283.0,0.00036317]
[1609599619398,0.00405079,31285.0,31283.0,4.90036317]
[1609599619798,0.00405079,31285.0,31283.0,0.00036317]
[1609599619999,0.00405079,31285.0,31284.0,0.0003631]
[1609599620601,0.18487312,31285.0,31283.0,0.0003632]
[1609599620799,0.18448237,31285.0,31283.0,0.0003632]
[1609599620999,0.00039075,31284.0,31283.0,0.0003632]
[1609599621399,0.00405079,31285.0,31283.0,0.0003632]
[1609599622601,0.0003908,31284.0,31283.0,0.0003632]
[1609599623200,0.00405079,31285.0,31283.0,0.0003632]
[1609599623401,0.0003908,31284.0,31283.0,0.0003632]
[1609599623700,0.00405079,31285.0,31283.0,0.0003632]
[1609599623901,0.00039078,31284.0,31283.0,0.0003632]
[1609599624510,0.18082236,31284.0,31283.0,0.0003632]
[1609599625105,0.18082236,31284.0,31281.0,0.00036327]
[1609599625303,0.18082236,31284.0,31283.0,0.00036327]
[1609599625502,0.18043158,31284.0,31282.0,0.00036324]
[1609599625904,0.18082238,31284.0,31283.0,0.00036324]
[1609599626107,0.18043158,31284.0,31283.0,0.00036324]
[1609599626306,0.18082238,31284.0,31281.0,0.00036324]
[1609599626503,0.18082238,31284.0,31281.0,0.18079482]
[1609599626705,0.18082238,31284.0,31283.0,0.00036326]
[1609599626908,0.18043158,31284.0,31282.0,0.00036326]
[1609599627103,0.18082239,31284.0,31283.0,0.00036326]
[1609599627404,0.18043158,31284.0,31283.0,0.00036326]
[1609599627806,0.18082238,31284.0,31282.0,0.00036326]
[1609599628007,0.18082238,31284.0,31283.0,0.00036326]
[1609599628206,0.18043158,31284.0,31283.0,0.00036326]
[1609599628607,0.18082238,31284.0,31282.0,0.00036326]
[1609599628807,0.18082238,31284.0,31283.0,0.00036326]
[1609599629007,1.18043158,31284.0,31283.0,0.00036326]
[1609599629408,1.1808224,31284.0,31281.0,0.00036326]
[1609599629607,1.1808224,31284.0,31280.0,4.2088]
[1609599629608,1.1808224,31284.0,31283.0,0.00036326]
[1609599629807,1.18043158,31284.0,31282.0,0.00036328]
[1609599630007,0.18043158,31284.0,31282.0,0.00036328]
[1609599630208,0.18043158,31284.0,31280.0,4.2088]
[1609599630209,0.18043158,31284.0,31281.0,0.00036328]
[1609599630407,0.18043158,31284.0,31283.0,0.00036328]
[1609599630607,0.00039083,31283.0,31282.0,0.00036328]
[1609599630807,0.18082241,31284.0,31283.0,0.00036328]
[1609599631007,0.18043158,31284.0,31283.0,0.00036328]
[1609599631207,0.18043158,31284.0,31282.0,0.00036328]
[1609599631407,0.1808224,31284.0,31283.0,0.00036328]
[1609599631711,0.1808224,31284.0,31281.0,0.00036328]
[1609599631909,0.1808224,31284.0,31283.0,0.00036328]
[1609599632109,1.1808224,31284.0,31283.0,0.00036328]
[1609599632310,1.18043158,31284.0,31282.0,0.00036328]
[1609599632510,1.18043158,31284.0,31281.0,0.00036328]
[1609599632712,1.18043158,31284.0,31283.0,0.00036328]
[1609599633010,1.18043158,31284.0,31282.0,0.00036328]
[1609599633212,1.18043158,31284.0,31281.0,0.00036328]
[1609599633414,0.18043158,31284.0,31281.0,0.00036328]
[1609599633612,0.18043158,31284.0,31283.0,0.00036328]
[1609599633813,0.18043158,31284.0,31282.0,0.00036328]
[1609599634014,0.18082241,31284.0,31283.0,0.00036328]
[1609599634416,0.18043158,31284.0,31283.0,0.00036328]
[1609599634615,0.1808224,31284.0,31281.0,0.00036328]
[1609599634815,0.1808224,31284.0,31283.0,0.00036328]
[1609599635115,0.18043158,31284.0,31282.0,0.00036325]
[1609599635516,0.18043158,31284.0,31281.0,0.00036325]
[1609599635717,0.18043158,31284.0,31283.0,0.00036325]
[1609599635917,0.18043158,31284.0,31282.0,0.00036322]
[1609599636318,0.18043158,31284.0,31283.0,0.00036322]
[1609599636719,0.18043158,31284.0,31281.0,0.00036322]
[1609599637923,0.17848274,31284.0,31281.0,0.00036322]
[1609599640530,0.17848274,31284.0,31283.0,0.18043158]
[1609599640930,0.17848274,31284.0,31283.0,0.18079477]
[1609599648636,0.17653421,31284.0,31283.0,0.18079477]
[1609599649538,1.17653421,31284.0,31283.0,0.00036319]
[1609599649937,1.17653421,31284.0,31280.0,0.00036108]
[1609599650238,2.17653421,31284.0,31283.0,0.00036108]
[1609599650437,2.17653421,31284.0,31281.0,0.0003611]
[1609599650841,2.17692505,31284.0,31283.0,0.00036113]
[1609599651037,2.17653421,31284.0,31282.0,0.00036113]
[1609599651237,2.17653421,31284.0,31277.0,0.18043158]
[1609599651238,2.17692504,31284.0,31283.0,0.00036113]
[1609599651640,2.17653421,31284.0,31283.0,0.00036113]
[1609599651839,2.17692503,31284.0,31278.0,0.00036111]
[1609599652040,0.00039084,31283.0,31271.0,0.00036114]
[1609599652240,1.00039084,31283.0,31271.0,0.00036114]
[1609599652441,1.0,31282.0,31279.0,0.00036114]
[1609599652641,1.0,31282.0,31273.0,0.18043158]
[1609599652642,0.18043158,31280.0,31273.0,0.18043158]
[1609599653241,0.00039084,31279.0,31274.0,0.00036114]
[1609599653443,0.18043158,31280.0,31274.0,0.00036114]
[1609599654642,1.0,31282.0,31278.0,0.18043158]
[1609599654843,1.0,31282.0,31274.0,0.00036114]
[1609599655044,0.00039084,31281.0,31279.0,0.00036114]
[1609599655446,1.0,31282.0,31279.0,0.00036114]
[1609599655645,0.14752,31283.0,31271.0,0.00036112]
[1609599656047,0.00039082,31282.0,31271.0,0.00036112]
[1609599656648,0.14752,31283.0,31277.0,0.18043158]
[1609599657156,0.00039083,31282.0,31278.0,0.00036112]
[1609599657851,0.00039083,31282.0,31277.0,0.18043158]
[1609599658051,0.00039083,31282.0,31279.0,0.00036112]
[1609599658450,0.00039083,31282.0,31278.0,0.00036112]
[1609599658652,0.18043158,31279.0,31278.0,0.00036112]
[1609599658850,0.18043158,31279.0,31277.0,0.18043158]
[1609599659249,0.18043158,31279.0,31278.0,0.00036113]
[1609599660451,0.14752,31283.0,31278.0,0.00036113]
[1609599660652,0.14752,31283.0,31282.0,0.18043158]
[1609599660852,1.00407804,31288.0,31282.0,0.18043158]
[1609599661053,1.00407804,31288.0,31282.0,0.18079268]
[1609599661255,0.00407804,31288.0,31282.0,0.18079268]
[1609599661454,0.00039081,31287.0,31283.0,0.0003611]
[1609599661655,0.00407804,31288.0,31283.0,0.0003611]
[1609599661856,2.2845,31289.0,31283.0,0.0003611]
[1609599662256,0.2845,31289.0,31283.0,0.0003611]
[1609599662658,0.2845,31289.0,31286.0,0.18043158]
[1609599663360,0.2845,31289.0,31287.0,0.00036104]
[1609599663761,0.2845,31289.0,31288.0,0.00036104]
[1609599663960,0.2845,31289.0,31286.0,0.18043158]
[1609599664161,0.2845,31289.0,31288.0,0.00036103]
[1609599664361,0.2845,31289.0,31287.0,0.00036103]
[1609599664560,0.2845,31289.0,31288.0,0.00036103]
[1609599664761,0.46493158,31289.0,31288.0,0.00036103]
[1609599665160,0.46493158,31289.0,31286.0,0.18043158]
[1609599665161,0.46493158,31289.0,31287.0,0.00036103]
[1609599665361,0.46493158,31289.0,31288.0,0.00036103]
[1609599665864,0.46493158,31289.0,31287.0,0.00036103]
[1609599666162,0.46493158,31289.0,31286.0,0.18043158]
[1609599666163,0.46493158,31289.0,31288.0,0.00036103]
[1609599666363,0.46493158,31289.0,31287.0,0.00036103]
[1609599666762,0.46493158,31289.0,31288.0,0.00036105]
[1609599666963,0.15169,31290.0,31288.0,0.00036105]
[1609599667163,0.00407644,31293.0,31288.0,0.7378]
[1609599667565,0.00407644,31293.0,31289.0,0.00036099]
[1609599668265,0.00407644,31293.0,31290.0,1.0]
[1609599668666,0.00407644,31293.0,31292.0,0.18043158]
[1609599669265,0.00407644,31293.0,31292.0,0.18079246]
[1609599669669,0.18043158,31296.0,31292.0,0.18079246]
[1609599670066,0.17165509,31297.0,31295.0,4.1929]
[1609599670668,0.17165509,31297.0,31296.0,0.00036079]
[1609599670868,0.17165509,31297.0,31296.0,0.18079237]
[1609599671471,0.16758,31297.0,31296.0,0.18079237]
[1609599671668,0.02769014,31301.0,31296.0,0.18079237]
[1609599672068,0.0040714,31302.0,31296.0,0.18079237]
[1609599672271,0.0040714,31302.0,31300.0,1.0]
[1609599672768,0.0040714,31302.0,31301.0,0.1807923]
[1609599672970,0.18043158,31314.0,31301.0,0.1807923]
[1609599673168,0.18043158,31314.0,31304.0,3.6168]
[1609599673372,0.0003905,31313.0,31304.0,3.6168]
[1609599673568,0.0003905,31313.0,31305.0,0.00036072]
[1609599674170,0.0003905,31313.0,31311.0,1.0]
[1609599674771,0.0003905,31313.0,31312.0,0.1807923]
[1609599675671,0.01393542,31318.0,31312.0,0.7585923]
[1609599676373,0.01393542,31318.0,31313.0,0.0003607]
[1609599676774,0.01393542,31318.0,31317.0,0.18043158]
[1609599677374,0.01393759,31319.0,31317.0,0.18043158]
[1609599678278,0.76135783,31321.0,31317.0,0.18043158]
[1609599678279,0.18043158,31321.0,31317.0,0.18043158]
[1609599678678,0.28775403,31326.0,31317.0,0.18043158]
[1609599678878,0.46818561,31326.0,31325.0,0.18043158]
[1609599679277,0.46857602,31326.0,31325.0,0.18043158]
[1609599680783,0.46818561,31326.0,31325.0,0.18043158]
[1609599684087,0.59340561,31326.0,31325.0,0.18043158]
[1609599685589,0.12927403,31326.0,31325.0,0.18043158]
[1609599685990,0.12522,31326.0,31325.0,0.18043158]
[1609599686790,0.10522,31326.0,31325.0,0.18043158]
[1609599687593,0.10522,31326.0,31307.0,4.2335]
[1609599688792,0.18043158,31321.0,31320.0,0.18043158]
[1609599695606,0.180822,31321.0,31320.0,0.18079222]
[1609599696607,0.180822,31321.0,31320.0,0.18043158]
[1609599697207,0.180822,31321.0,31320.0,0.18079221]
[1609599697407,0.180822,31321.0,31320.0,0.18043158]
[1609599698608,0.180822,31321.0,31318.0,0.03]
[1609599699009,0.00039042,31320.0,31318.0,0.03]
[1609599701411,0.00039042,31320.0,31319.0,0.00036063]
[1609599717535,0.160822,31321.0,31319.0,0.00036063]
[1609599718836,0.160822,31321.0,31320.0,0.18043158]
[1609599719437,0.16121232,31321.0,31320.0,0.18079227]
[1609599721037,0.160822,31321.0,31320.0,0.18079227]